bitfinex/quotes_BTCUSD_20251120
["timestamp","ask_amount","ask_price","bid_price","bid_amount"]
[1763638117589,0.101,91556.0,91555.0,1.01647046]
[1763638121753,0.101,91556.0,91555.0,1.02586046]
[1763638123469,0.101,91556.0,91555.0,1.01647046]
[1763638125881,0.101,91556.0,91555.0,1.02586046]
[1763638126233,0.101,91556.0,91555.0,1.01647046]
[1763638127006,0.101,91556.0,91555.0,1.03525046]
[1763638127635,0.101,91556.0,91555.0,1.02586046]
[1763638128269,0.1,91556.0,91555.0,1.02586046]
[1763638130533,0.1,91556.0,91555.0,1.03525046]
[1763638131793,0.1,91556.0,91555.0,1.02586046]
[1763638132166,0.1,91556.0,91555.0,1.03525046]
[1763638132598,0.1,91556.0,91555.0,1.02586046]
[1763638132791,0.1,91556.0,91555.0,1.03525046]
[1763638132996,0.1,91556.0,91555.0,1.50565046]
[1763638136287,0.105,91556.0,91555.0,1.50565046]
[1763638142393,0.105,91556.0,91555.0,1.58420001]
[1763638143932,0.105,91556.0,91555.0,1.50565046]
[1763638144142,0.00072147,91569.0,91555.0,1.50565046]
[1763638144143,0.00072147,91569.0,91568.0,0.54141691]
[1763638144347,0.00072147,91569.0,91568.0,0.55448691]
[1763638144545,0.00072147,91569.0,91568.0,0.56387691]
[1763638144783,0.00072147,91569.0,91568.0,0.57463411]
[1763638145575,0.00072147,91569.0,91568.0,0.56387691]
[1763638146215,0.00072147,91569.0,91568.0,0.57492873]
[1763638146650,0.00072147,91569.0,91568.0,0.56387691]
[1763638147025,0.00072147,91569.0,91568.0,0.56487691]
[1763638150383,0.00072147,91569.0,91568.0,0.71227691]
[1763638154391,0.00072147,91569.0,91568.0,0.73954939]
[1763638155323,0.00072147,91569.0,91568.0,0.73854939]
[1763638155710,0.00072147,91569.0,91568.0,0.73954939]
[1763638157542,0.00072147,91569.0,91568.0,0.81806136]
[1763638159011,0.00072147,91569.0,91568.0,0.73954939]
[1763638162454,0.00072147,91569.0,91568.0,0.81806136]
[1763638163342,0.0004201,91572.0,91571.0,0.54140975]
[1763638163456,0.0004201,91572.0,91571.0,0.55079975]
[1763638163664,0.0004201,91572.0,91571.0,0.56018975]
[1763638165104,0.0004201,91572.0,91571.0,0.70858975]
[1763638165502,8.546e-05,91572.0,91571.0,0.70758975]
[1763638165716,8.546e-05,91572.0,91571.0,0.70858975]
[1763638166590,8.546e-05,91572.0,91571.0,0.70958975]
[1763638170572,0.2183213,91610.0,91607.0,0.01091619]
[1763638170573,0.01091583,91610.0,91607.0,0.01091619]
[1763638170770,0.00012602,91610.0,91609.0,0.00939]
[1763638170931,0.00012602,91610.0,91609.0,0.22770916]
[1763638171128,0.00012602,91610.0,91609.0,0.00939]
[1763638171329,0.00108807,91610.0,91609.0,0.00939]
[1763638171753,0.21940484,91610.0,91609.0,0.00939]
[1763638171958,0.22040484,91610.0,91609.0,0.00939]
[1763638172271,0.21940484,91610.0,91609.0,0.00939]
[1763638172447,0.00108807,91610.0,91609.0,0.22770916]
[1763638172874,0.21940484,91610.0,91609.0,0.00939]
[1763638173256,0.00108807,91610.0,91609.0,0.00939]
[1763638173454,0.00108807,91610.0,91609.0,0.23709916]
[1763638173856,0.00208807,91610.0,91609.0,0.23709916]
[1763638174023,0.00108807,91610.0,91609.0,0.23709916]
[1763638174584,0.00108807,91610.0,91609.0,0.24648916]
[1763638176067,0.00108807,91610.0,91609.0,0.23709916]
[1763638176720,0.00208807,91610.0,91609.0,0.23709916]
[1763638177132,0.00208807,91610.0,91609.0,0.01878]
[1763638177357,0.00208807,91610.0,91609.0,0.00368]
[1763638177358,0.23587484,91610.0,91609.0,0.00368]
[1763638177950,0.22040484,91610.0,91609.0,0.00368]
[1763638178355,0.23587484,91610.0,91609.0,0.00368]
[1763638178588,0.22040484,91610.0,91609.0,0.00368]
[1763638179112,0.21832392,91607.0,91606.0,0.02727248]
[1763638179390,0.21832392,91607.0,91606.0,0.03095248]
[1763638181946,0.21832392,91607.0,91606.0,0.00368]
[1763638184151,0.22923738,91609.0,91606.0,0.00368]
[1763638184354,0.00012602,91610.0,91608.0,0.02727248]
[1763638184558,0.00012602,91610.0,91609.0,0.22930444]
[1763638184759,0.00012602,91610.0,91609.0,0.21831916]
[1763638184992,0.00108807,91610.0,91609.0,0.21831916]
[1763638186551,0.00108807,91610.0,91608.0,0.02727248]
[1763638186804,0.00012602,91610.0,91609.0,0.01098528]
[1763638187008,0.00112602,91610.0,91609.0,0.22930444]
[1763638187236,0.00112602,91610.0,91609.0,0.21831916]
[1763638187396,0.00012602,91610.0,91609.0,0.21831916]
[1763638187553,0.00012602,91610.0,91608.0,0.24559349]
[1763638187760,0.00112602,91610.0,91609.0,0.01098528]
[1763638188394,0.21831916,91609.0,91608.0,0.02727248]
[1763638188601,0.21944279,91610.0,91608.0,0.02727248]
[1763638189010,0.21831916,91609.0,91608.0,0.02727248]
[1763638190542,0.001,91609.0,91608.0,0.02727248]
[1763638190745,0.001,91609.0,91608.0,0.25657966]
[1763638191052,0.001,91609.0,91608.0,0.24559402]
[1763638191297,0.001,91609.0,91608.0,0.02727248]
[1763638191505,0.21931916,91609.0,91608.0,0.02727248]
[1763638192070,0.00193291,91609.0,91608.0,0.02727248]
[1763638192310,0.22025207,91609.0,91608.0,0.02727248]
[1763638192660,0.00193291,91609.0,91608.0,0.02727248]
[1763638192866,0.00193291,91609.0,91608.0,0.24559402]
[1763638193954,0.22025207,91609.0,91608.0,0.02727248]
[1763638194374,0.00193291,91609.0,91608.0,0.02727248]
[1763638194781,0.00193291,91609.0,91608.0,0.25657966]
[1763638194982,0.00193291,91609.0,91608.0,0.24559402]
[1763638195243,0.00193291,91609.0,91608.0,0.02727248]
[1763638195440,0.22025207,91609.0,91608.0,0.03825812]
[1763638195604,0.22025207,91609.0,91608.0,0.02727248]
[1763638195811,0.00193291,91609.0,91608.0,0.02727248]
[1763638196107,0.00193291,91609.0,91608.0,0.24559402]
[1763638196305,0.00193291,91609.0,91608.0,0.02727248]
[1763638196511,0.00193291,91609.0,91608.0,0.24559402]
[1763638197830,0.00193291,91609.0,91608.0,0.26437402]
[1763638200819,0.00093291,91609.0,91608.0,0.26437402]
[1763638201187,0.00093291,91609.0,91608.0,0.26537402]
[1763638202355,0.00093291,91609.0,91608.0,0.26637402]
[1763638203098,0.00093291,91609.0,91608.0,0.04705248]
[1763638203270,0.00093291,91609.0,91608.0,0.26437402]
[1763638203502,0.00093291,91609.0,91608.0,0.3439998]
[1763638203622,0.00093291,91609.0,91608.0,0.3449998]
[1763638203833,0.00093291,91609.0,91608.0,0.25027402]
[1763638204033,0.00093291,91609.0,91608.0,0.24927402]
[1763638204242,0.00093291,91609.0,91608.0,0.25027402]
[1763638205676,0.00093291,91609.0,91608.0,0.25127402]
[1763638208947,0.00093291,91609.0,91608.0,0.57427402]
[1763638209126,0.00093291,91609.0,91608.0,0.58518795]
[1763638213654,0.00093291,91609.0,91608.0,0.58418795]
[1763638213836,9.144e-05,91609.0,91608.0,0.58418795]
[1763638214081,9.144e-05,91609.0,91608.0,0.58318795]
[1763638214419,9.144e-05,91609.0,91608.0,0.58418795]
[1763638215077,9.144e-05,91609.0,91608.0,1.66743156]
[1763638215289,9.144e-05,91609.0,91608.0,1.66843156]
[1763638218575,9.144e-05,91609.0,91608.0,1.81583156]
[1763638219835,9.144e-05,91609.0,91608.0,0.73258795]
[1763638223628,0.01091155,91646.0,91643.0,0.21823816]
[1763638223829,0.01249656,91644.0,91643.0,2.38615278]
[1763638225098,0.00012656,91644.0,91643.0,2.16791462]
[1763638225325,0.00112656,91644.0,91643.0,2.38615278]
[1763638225526,0.00212656,91644.0,91643.0,2.16791462]
[1763638225822,0.00212656,91644.0,91643.0,2.38615278]
[1763638226242,0.00112656,91644.0,91643.0,2.38615278]
[1763638226675,0.00212656,91644.0,91643.0,2.38615278]
[1763638227096,0.00112656,91644.0,91643.0,2.38615278]
[1763638227510,0.00212656,91644.0,91643.0,2.38615278]
[1763638227914,0.00112656,91644.0,91643.0,2.38615278]
[1763638228116,0.00012656,91644.0,91643.0,2.38615278]
[1763638229228,0.00114635,91644.0,91643.0,2.38615278]
[1763638230236,0.00114635,91644.0,91643.0,2.16791462]
[1763638230433,0.21938213,91644.0,91643.0,2.16791462]
[1763638230656,0.00114635,91644.0,91643.0,2.16791462]
[1763638231019,0.21938213,91644.0,91643.0,2.16791462]
[1763638231188,0.00114635,91644.0,91643.0,2.16791462]
[1763638231426,0.21938213,91644.0,91643.0,2.16791462]
[1763638231595,0.00114635,91644.0,91643.0,2.16791462]
[1763638231928,0.21938213,91644.0,91643.0,2.16791462]
[1763638232329,0.25950213,91644.0,91643.0,2.16791462]
[1763638234082,0.26050213,91644.0,91643.0,2.16791462]
[1763638234491,0.25950213,91644.0,91643.0,2.16791462]
[1763638234692,0.26050213,91644.0,91643.0,2.16791462]
[1763638234893,0.25950213,91644.0,91643.0,2.16791462]
[1763638235102,0.26050213,91644.0,91643.0,2.16791462]
[1763638235334,0.26150213,91644.0,91643.0,2.16791462]
[1763638242484,0.31360462,91644.0,91643.0,2.16791462]
[1763638246075,0.26150213,91644.0,91643.0,2.16791462]
[1763638253918,0.21826251,91633.0,91631.0,0.00368]
[1763638254144,0.21826251,91633.0,91631.0,2.18256632]
[1763638254381,0.00067024,91632.0,91631.0,2.3898612]
[1763638254620,0.00067024,91632.0,91631.0,2.17159462]
[1763638254860,0.00067024,91632.0,91631.0,2.38986136]
[1763638256668,0.00067024,91632.0,91631.0,2.40223136]
[1763638257507,0.00067024,91632.0,91631.0,2.40323136]
[1763638258991,0.00067024,91632.0,91631.0,2.40423136]
[1763638259983,0.00067024,91632.0,91631.0,2.39186136]
[1763638266095,0.00067024,91632.0,91631.0,2.53926136]
[1763638270682,0.00067024,91632.0,91631.0,2.32099462]
[1763638270861,0.2585946,91632.0,91631.0,2.32099462]
[1763638271890,0.01618024,91632.0,91631.0,2.53926136]
[1763638272094,0.01618024,91632.0,91631.0,2.39186136]
[1763638272252,0.01618024,91632.0,91631.0,2.39086136]
[1763638272451,0.00067024,91632.0,91631.0,2.38986136]
[1763638272653,0.2189346,91632.0,91631.0,2.17159462]
[1763638273072,0.00067024,91632.0,91631.0,2.17159462]
[1763638273272,0.00067024,91632.0,91631.0,2.38986136]
[1763638274444,0.00067024,91632.0,91631.0,1.30519035]
[1763638274630,0.00067024,91632.0,91631.0,2.38986136]
[1763638284616,0.00067024,91632.0,91631.0,0.22194674]
[1763638291109,0.00067024,91632.0,91631.0,0.22294674]
[1763638292183,0.00067024,91632.0,91631.0,0.22394674]
[1763638294921,0.00067024,91632.0,91631.0,0.00568]
[1763638295091,0.00067024,91632.0,91631.0,0.22394674]
[1763638295455,0.00067024,91632.0,91631.0,0.00568]
[1763638295653,0.2578346,91632.0,91631.0,0.00568]
[1763638295826,0.03957024,91632.0,91631.0,0.00568]
[1763638296080,0.01664024,91632.0,91631.0,0.00568]
[1763638296291,0.2349046,91632.0,91631.0,0.00568]
[1763638296496,0.01664024,91632.0,91631.0,0.00568]
[1763638296665,0.01664024,91632.0,91631.0,0.22394674]
[1763638296871,0.00067024,91632.0,91631.0,0.22394674]
[1763638297695,0.00067024,91632.0,91631.0,0.22294674]
[1763638297902,0.00067024,91632.0,91631.0,0.22194674]
[1763638298986,0.00067024,91632.0,91631.0,0.30048112]
[1763638299611,0.00067024,91632.0,91631.0,0.22194674]
[1763638300017,0.00067024,91632.0,91631.0,0.54494674]
[1763638300442,0.00067024,91632.0,91631.0,0.5493148]
[1763638300653,0.00067024,91632.0,91631.0,0.5503148]
[1763638301061,0.00067024,91632.0,91631.0,0.5513148]
[1763638301894,0.00067024,91632.0,91631.0,0.6987148]
[1763638307028,0.00067024,91632.0,91631.0,0.69066674]
[1763638307232,0.00067024,91632.0,91631.0,0.69434674]
[1763638307876,0.00067024,91632.0,91631.0,0.54594674]
[1763638308484,0.00067024,91632.0,91631.0,0.54494674]
[1763638308652,0.00067024,91632.0,91631.0,0.54594674]
[1763638309336,0.00067024,91632.0,91631.0,0.54494674]
[1763638320259,0.00067024,91632.0,91631.0,0.62352784]
[1763638321788,0.00067024,91632.0,91631.0,0.62452784]
[1763638321915,0.00067024,91632.0,91631.0,0.62552784]
[1763638322314,0.00067024,91632.0,91631.0,0.54609433]
[1763638324679,0.00067024,91632.0,91631.0,0.54509433]
[1763638325115,0.00067024,91632.0,91631.0,0.54409433]
[1763638326859,0.00067024,91632.0,91631.0,0.32668]
[1763638327064,0.00067024,91632.0,91631.0,0.54494674]
[1763638327477,0.00067024,91632.0,91631.0,0.32668]
[1763638327638,0.00067024,91632.0,91631.0,0.54494674]
[1763638328042,0.00067024,91632.0,91631.0,0.00368]
[1763638328043,0.2189346,91632.0,91631.0,0.00368]
[1763638328264,0.00067024,91632.0,91631.0,0.00368]
[1763638328465,0.00067024,91632.0,91631.0,0.22194674]
[1763638329867,0.00014683,91632.0,91631.0,0.55848852]
[1763638330865,2.565e-05,91632.0,91631.0,0.55848852]
[1763638331066,0.0004,91660.0,91643.0,0.21823816]
[1763638331374,0.0004,91660.0,91643.0,2.41710526]
[1763638331866,0.0004,91660.0,91643.0,2.42147296]
[1763638332246,0.0004,91660.0,91643.0,2.50002435]
[1763638332450,0.0004,91660.0,91643.0,2.42147296]
[1763638332836,0.0004,91660.0,91643.0,2.42247296]
[1763638333252,0.0004,91660.0,91643.0,2.50100994]
[1763638333690,0.0004,91660.0,91643.0,2.50200994]
[1763638335486,0.0004,91660.0,91643.0,2.82500994]
[1763638336838,0.00047616,91644.0,91643.0,2.82500994]
[1763638337221,0.00047616,91644.0,91643.0,2.74647296]
[1763638337423,0.00047616,91644.0,91643.0,2.82500994]
[1763638338732,0.00047616,91644.0,91643.0,2.74647296]
[1763638345290,0.00047616,91644.0,91643.0,2.74279296]
[1763638345495,0.00047616,91644.0,91643.0,2.74647296]
[1763638346415,0.01578616,91644.0,91643.0,2.2052348]
[1763638346656,0.04009616,91644.0,91643.0,2.17359462]
[1763638347081,0.01578616,91644.0,91643.0,2.17359462]
[1763638347283,0.00047616,91644.0,91643.0,2.17359462]
[1763638347497,0.00047616,91644.0,91643.0,2.17159462]
[1763638349085,0.00047616,91644.0,91643.0,1.08835101]
[1763638349283,0.00047616,91644.0,91643.0,2.17159462]
[1763638352455,0.00047616,91644.0,91643.0,2.38983278]
[1763638356175,0.00047616,91644.0,91643.0,2.39083278]
[1763638356342,0.00047616,91644.0,91643.0,2.39183278]
[1763638357769,0.00047616,91644.0,91643.0,2.71483278]
[1763638361095,0.00047616,91644.0,91643.0,2.86223278]
[1763638361429,0.00047616,91644.0,91643.0,0.69431816]
[1763638361669,0.00047616,91644.0,91643.0,0.72159064]
[1763638362631,0.00047616,91644.0,91643.0,0.71791064]
[1763638362835,0.00047616,91644.0,91643.0,0.72159064]
[1763638363037,0.00047616,91644.0,91643.0,0.72059064]
[1763638363234,0.00047616,91644.0,91643.0,0.79814415]
[1763638363432,0.00047616,91644.0,91643.0,0.57990599]
[1763638363641,0.00047616,91644.0,91643.0,0.79814415]
[1763638364064,0.00047616,91644.0,91643.0,0.71959064]
[1763638367156,0.00047616,91644.0,91643.0,0.57219064]
[1763638370051,0.00047616,91644.0,91643.0,0.58423064]
[1763638375987,0.00047616,91644.0,91643.0,0.36599248]
[1763638376139,0.00047616,91644.0,91643.0,0.65078824]
[1763638378136,0.00047616,91644.0,91643.0,0.57219064]
[1763638380607,0.00047616,91644.0,91643.0,0.57214264]
[1763638384729,0.00010975,91644.0,91643.0,0.57214264]
[1763638385911,0.00010975,91644.0,91643.0,0.57314264]
[1763638387083,0.00010975,91644.0,91643.0,0.57414264]
[1763638387794,0.00010975,91644.0,91643.0,0.35590448]
[1763638390675,0.00010975,91644.0,91643.0,0.36027235]
[1763638393931,0.00010975,91644.0,91643.0,0.35590448]
[1763638394733,2.561e-05,91644.0,91643.0,0.35590448]
[1763638397387,0.10002561,91644.0,91643.0,0.35590448]
[1763638397739,0.10002561,91644.0,91643.0,0.38866174]
[1763638399387,0.10002561,91644.0,91643.0,0.06570974]
[1763638399718,0.10002561,91644.0,91643.0,0.07667453]
[1763638400037,0.10002561,91644.0,91643.0,0.10694351]
[1763638402279,0.10002561,91644.0,91643.0,0.09597872]
[1763638402892,0.10002561,91644.0,91643.0,0.24337872]
[1763638405621,0.10002561,91644.0,91643.0,0.56637872]
[1763638407572,0.10002561,91644.0,91643.0,0.56269872]
[1763638407758,0.10002561,91644.0,91643.0,0.56637872]
[1763638409365,0.01774948,91644.0,91643.0,0.56637872]
[1763638412385,0.01774948,91644.0,91643.0,0.56537872]
[1763638412583,0.01774948,91644.0,91643.0,0.56637872]
[1763638412790,0.01774948,91644.0,91643.0,0.56537872]
[1763638412982,0.01774948,91644.0,91643.0,0.56637872]
[1763638414131,0.01774948,91644.0,91643.0,0.56537872]
[1763638414530,0.01774948,91644.0,91643.0,0.56637872]
[1763638417349,0.0004,91660.0,91644.0,0.323]
[1763638417517,0.00045981,91650.0,91645.0,0.0332519]
[1763638418123,0.00045981,91650.0,91646.0,0.00436681]
[1763638418326,0.00045981,91650.0,91647.0,0.01096218]
[1763638419007,0.00045981,91650.0,91648.0,0.00436681]
[1763638419204,0.00045981,91650.0,91649.0,0.01096146]
[1763638419411,0.00045981,91650.0,91649.0,0.04123044]
[1763638419838,0.00045981,91650.0,91649.0,0.04559725]
[1763638420664,0.00045981,91650.0,91649.0,0.51599725]
[1763638420808,0.00045981,91650.0,91649.0,0.50503579]
[1763638421657,0.00045981,91650.0,91649.0,0.50603579]
[1763638424874,0.00045981,91650.0,91649.0,0.50703579]
[1763638427238,0.00017153,91652.0,91650.0,0.323]
[1763638427438,0.00017153,91652.0,91650.0,0.44344043]
[1763638427843,0.00017153,91652.0,91651.0,0.00436681]
[1763638430165,0.00017153,91652.0,91651.0,0.00536681]
[1763638430370,0.00017153,91652.0,91651.0,0.00636681]
[1763638430571,0.00017153,91652.0,91651.0,0.45778721]
[1763638431201,0.00017153,91652.0,91651.0,0.35963579]
[1763638431412,0.00017153,91652.0,91651.0,0.45787933]
[1763638432417,0.00017153,91652.0,91651.0,0.50703579]
[1763638434871,0.00017153,91652.0,91651.0,0.60527933]
[1763638437079,0.00017153,91652.0,91651.0,0.25627162]
[1763638437310,0.00017153,91652.0,91651.0,0.26063843]
[1763638438724,0.00011076,91652.0,91651.0,0.18203579]
[1763638439127,0.00011076,91652.0,91651.0,0.19299582]
[1763638439483,0.00011076,91652.0,91651.0,0.18203579]
[1763638440494,0.00011076,91652.0,91651.0,0.19299582]
[1763638440694,0.00011076,91652.0,91651.0,0.50503579]
[1763638442638,0.0004,91660.0,91653.0,3.0]
[1763638442842,0.0004,91660.0,91659.0,0.10588248]
[1763638443042,0.0004,91660.0,91659.0,2.20614237]
[1763638443221,0.0004,91660.0,91659.0,2.22245348]
[1763638443421,0.0004,91660.0,91659.0,2.30105324]
[1763638443629,0.0004,91660.0,91659.0,2.25640246]
[1763638444199,0.0004,91660.0,91659.0,2.25740246]
[1763638444840,0.0004,91660.0,91659.0,2.57940246]
[1763638445101,0.0004,91660.0,91659.0,2.25640246]
[1763638445352,0.0004,91660.0,91659.0,2.25740246]
[1763638445937,0.0004,91660.0,91659.0,2.25640246]
[1763638447361,0.03841,91660.0,91659.0,2.22613348]
[1763638447567,0.03841,91660.0,91659.0,2.27747811]
[1763638447922,0.03841,91660.0,91659.0,2.1988671]
[1763638448300,0.038643,91660.0,91659.0,2.17159462]
[1763638452620,0.039643,91660.0,91659.0,2.17159462]
[1763638452819,0.040643,91660.0,91659.0,2.17159462]
[1763638455449,0.002633,91660.0,91659.0,2.17159462]
[1763638455792,0.040643,91660.0,91659.0,2.17159462]
[1763638456204,0.039643,91660.0,91659.0,2.17159462]
[1763638456410,0.038643,91660.0,91659.0,2.17159462]
[1763638459431,0.000633,91660.0,91659.0,2.17159462]
[1763638461951,0.000633,91660.0,91659.0,2.18312462]
[1763638465605,0.000633,91660.0,91659.0,2.17159462]
[1763638473160,0.000633,91660.0,91659.0,0.00368]
[1763638473362,0.000633,91660.0,91659.0,0.03095248]
[1763638475449,0.017003,91660.0,91659.0,0.03095248]
[1763638475657,0.039513,91660.0,91659.0,0.03095248]
[1763638476056,0.017003,91660.0,91659.0,0.03095248]
[1763638476256,0.000633,91660.0,91659.0,0.03095248]
[1763638477001,0.000633,91660.0,91659.0,0.04628009]
[1763638477789,0.000633,91660.0,91659.0,0.0572356]
[1763638478384,0.000633,91660.0,91659.0,0.13584661]
[1763638479332,0.000633,91660.0,91659.0,0.120519]
[1763638481287,0.000633,91660.0,91659.0,0.04190799]
[1763638482233,0.000633,91660.0,91659.0,0.03095248]
[1763638483569,0.03934936,91660.0,91659.0,0.03095248]
[1763638483871,0.03934936,91660.0,91659.0,0.05346248]
[1763638484238,0.03934936,91660.0,91659.0,0.03095248]
[1763638484847,0.03934936,91660.0,91659.0,0.00368]
[1763638486145,0.04034936,91660.0,91659.0,0.00368]
[1763638486478,0.01883936,91660.0,91659.0,0.00368]
[1763638487055,0.04134936,91660.0,91659.0,0.00368]
[1763638488600,0.01883936,91660.0,91659.0,0.00368]
[1763638488768,0.00246936,91660.0,91659.0,0.00368]
[1763638488966,0.01883936,91660.0,91659.0,0.00368]
[1763638489163,0.04134936,91660.0,91659.0,0.00368]
[1763638490307,0.00246936,91660.0,91659.0,0.00368]
[1763638492393,0.00046936,91660.0,91659.0,0.00368]
[1763638494426,0.03934936,91660.0,91659.0,0.00368]
[1763638497137,0.28482175,91660.0,91659.0,0.00368]
[1763638497336,0.25754704,91660.0,91659.0,0.00368]
[1763638498757,0.03934936,91660.0,91659.0,0.00368]
[1763638498944,0.28482175,91660.0,91659.0,0.00368]
[1763638499144,0.01683936,91660.0,91659.0,0.22188006]
[1763638499445,0.00046936,91660.0,91659.0,0.22188006]
[1763638500364,0.00046936,91660.0,91658.0,0.21579041]
[1763638500477,0.00046936,91660.0,91659.0,0.24915254]
[1763638503611,0.00046936,91660.0,91659.0,0.39655254]
[1763638505371,0.00046936,91660.0,91659.0,0.57215254]
[1763638505725,0.00046936,91660.0,91659.0,0.65076355]
[1763638505929,0.00046936,91660.0,91659.0,0.57215254]
[1763638508395,0.00046936,91660.0,91659.0,0.65060186]
[1763638508549,0.00046936,91660.0,91659.0,0.57215254]
[1763638508752,0.00046936,91660.0,91659.0,0.5765189]
[1763638515979,0.10046936,91660.0,91659.0,0.5765189]
[1763638517463,0.0827189,91660.0,91659.0,0.5765189]
[1763638519368,0.0826789,91660.0,91659.0,0.5765189]
[1763638519955,0.0826789,91660.0,91659.0,0.7239189]
[1763638520472,0.0004,91670.0,91659.0,0.7239189]
[1763638520473,0.0004,91670.0,91669.0,0.54117626]
[1763638520671,0.0004,91690.0,91669.0,0.54117626]
[1763638520672,0.0004,91690.0,91687.0,0.01090667]
[1763638520836,0.00047359,91690.0,91689.0,0.24540115]
[1763638523218,0.00047359,91690.0,91689.0,0.71580115]
[1763638524251,0.00047359,91690.0,91689.0,0.71680115]
[1763638524899,0.00047359,91690.0,91689.0,0.71780115]
[1763638530542,0.00047359,91690.0,91689.0,0.79617761]
[1763638530773,0.00047359,91690.0,91689.0,0.71780115]
[1763638531375,0.00134702,91690.0,91689.0,0.71780115]
[1763638532367,0.0004,91710.0,91709.0,0.2180811]
[1763638532568,0.00048275,91710.0,91709.0,2.53707572]
[1763638533703,0.00048275,91710.0,91709.0,2.71267572]
[1763638533846,0.00148275,91710.0,91709.0,2.71267572]
[1763638534069,0.00148275,91710.0,91709.0,2.74540935]
[1763638534693,0.00048275,91710.0,91709.0,2.74540935]
[1763638536824,0.00048275,91710.0,91709.0,2.74172935]
[1763638537038,0.00048275,91710.0,91709.0,2.74540935]
[1763638538180,0.00106481,91710.0,91709.0,2.74540935]
[1763638539518,0.00106481,91710.0,91709.0,2.89280935]
[1763638540707,0.00106481,91710.0,91709.0,2.56980935]
[1763638540895,0.00106481,91710.0,91709.0,2.53707572]
[1763638542237,0.21803438,91729.0,91709.0,2.53707572]
[1763638542238,0.0004,91740.0,91729.0,0.21803355]
[1763638542510,0.0004,91740.0,91729.0,2.38962817]
[1763638542864,0.0004,91740.0,91729.0,2.44218616]
[1763638543078,0.0004,91740.0,91729.0,2.47491422]
[1763638544176,0.0004,91740.0,91729.0,2.74535623]
[1763638544610,0.00044213,91730.0,91729.0,2.74535623]
[1763638548340,0.00044213,91730.0,91729.0,2.89275623]
[1763638549068,0.001024,91730.0,91729.0,2.89275623]
[1763638549464,0.001024,91730.0,91729.0,2.89375623]
[1763638549924,0.001024,91730.0,91729.0,2.89475623]
[1763638558454,4e-06,91730.0,91729.0,2.89475623]
[1763638558627,0.0004,91740.0,91739.0,0.54100978]
[1763638558854,0.00044212,91740.0,91739.0,2.7126044]
[1763638558996,0.00044212,91740.0,91739.0,2.73987688]
[1763638559194,0.00044212,91740.0,91739.0,2.74423945]
[1763638559434,0.00073299,91740.0,91739.0,2.74423945]
[1763638559840,0.00073299,91740.0,91739.0,2.89163945]
[1763638559989,0.0004,91750.0,91749.0,0.54098602]
[1763638560185,0.00044212,91750.0,91749.0,2.85630064]
[1763638560940,0.00044212,91750.0,91749.0,2.85998064]
[1763638561483,0.00044212,91750.0,91749.0,2.85630064]
[1763638561695,0.00044212,91750.0,91749.0,2.85998064]
[1763638562511,0.00044212,91750.0,91749.0,2.31899462]
[1763638562720,0.00044212,91750.0,91749.0,2.53698064]
[1763638563174,0.00044212,91750.0,91749.0,2.31899462]
[1763638563529,0.00044212,91750.0,91749.0,2.53698064]
[1763638564304,0.03934212,91750.0,91749.0,2.31531462]
[1763638564503,0.03934212,91750.0,91749.0,2.31899462]
[1763638564634,0.00044212,91750.0,91749.0,2.31899462]
[1763638566194,0.01587212,91750.0,91749.0,2.17159462]
[1763638566433,0.03934212,91750.0,91749.0,2.17159462]
[1763638566603,0.01587212,91750.0,91749.0,2.17159462]
[1763638566766,0.01587212,91750.0,91749.0,2.38958064]
[1763638567367,0.01587212,91750.0,91749.0,2.17159462]
[1763638567569,0.25732577,91750.0,91749.0,2.17159462]
[1763638567800,0.25732577,91750.0,91749.0,2.16791462]
[1763638568034,0.25732577,91750.0,91749.0,2.17159462]
[1763638569235,0.27765377,91750.0,91749.0,2.17159462]
[1763638569462,0.25832577,91750.0,91749.0,2.17159462]
[1763638569625,0.26032577,91750.0,91749.0,2.17159462]
[1763638570061,0.22555684,91750.0,91749.0,2.17159462]
[1763638570243,0.24198684,91750.0,91749.0,2.17159462]
[1763638570683,0.24227767,91750.0,91749.0,2.17159462]
[1763638571279,0.06251851,91750.0,91749.0,2.17159462]
[1763638571478,0.02361851,91750.0,91749.0,2.38958064]
[1763638571680,0.00329083,91750.0,91749.0,2.38958064]
[1763638571883,0.00329083,91750.0,91749.0,2.45330275]
[1763638572073,0.00329083,91750.0,91749.0,2.39455064]
[1763638572269,0.00329083,91750.0,91749.0,2.39952064]
[1763638572475,0.00029083,91750.0,91749.0,2.39952064]
[1763638572890,0.00229083,91750.0,91749.0,2.39952064]
[1763638573327,0.00229083,91750.0,91749.0,2.39455064]
[1763638573872,0.00129083,91750.0,91749.0,2.39455064]
[1763638574074,0.00029083,91750.0,91749.0,2.39455064]
[1763638576816,0.00029083,91750.0,91749.0,2.38958064]
[1763638578288,0.00029083,91750.0,91749.0,2.39455064]
[1763638578581,0.00029083,91750.0,91749.0,2.39952064]
[1763638578808,0.00029083,91750.0,91749.0,2.47272399]
[1763638579009,0.00029083,91750.0,91749.0,2.39455064]
[1763638579284,0.00029083,91750.0,91749.0,2.38958064]
[1763638579918,0.03919083,91750.0,91749.0,2.16791462]
[1763638580106,0.03919083,91750.0,91749.0,2.17159462]
[1763638580311,0.03919083,91750.0,91749.0,2.46801067]
[1763638580434,0.01572083,91750.0,91749.0,2.38958064]
[1763638580843,0.25717448,91750.0,91749.0,2.17159462]
[1763638581064,0.03919083,91750.0,91749.0,2.17159462]
[1763638581265,0.03919083,91750.0,91749.0,2.38958064]
[1763638581266,0.00029083,91750.0,91749.0,2.38958064]
[1763638581496,0.00029083,91750.0,91749.0,2.17159462]
[1763638582162,0.00029083,91750.0,91749.0,2.38958064]
[1763638582348,0.00029083,91750.0,91749.0,2.39455064]
[1763638582545,0.00129083,91750.0,91749.0,2.39952064]
[1763638582755,0.00229083,91750.0,91749.0,2.39952064]
[1763638583182,0.00129083,91750.0,91749.0,2.39952064]
[1763638583420,0.00029083,91750.0,91749.0,2.39952064]
[1763638583834,0.00029083,91750.0,91749.0,2.17159462]
[1763638584041,0.00029083,91750.0,91749.0,2.38958064]
[1763638584687,0.00029083,91750.0,91749.0,2.39455064]
[1763638585706,0.00029083,91750.0,91749.0,2.38958064]
[1763638588168,0.00029083,91750.0,91749.0,2.17159462]
[1763638588441,0.01572083,91750.0,91749.0,2.17159462]
[1763638589110,0.23370448,91750.0,91749.0,2.17159462]
[1763638589335,0.00029083,91750.0,91749.0,2.38958064]
[1763638590214,0.00029083,91750.0,91749.0,0.22166602]
[1763638590440,0.00029083,91750.0,91749.0,0.2489385]
[1763638591596,0.00029083,91750.0,91749.0,0.2539085]
[1763638592772,0.00029083,91750.0,91749.0,0.2489385]
[1763638593328,0.21827448,91750.0,91749.0,0.03095248]
[1763638593529,0.00029083,91750.0,91749.0,0.03095248]
[1763638593729,0.00029083,91750.0,91749.0,0.27877806]
[1763638593890,0.00029083,91750.0,91749.0,0.06079204]
[1763638594093,0.00029083,91750.0,91749.0,0.03095248]
[1763638594094,0.03995083,91750.0,91749.0,0.03095248]